fUSD/lending_fUSD_20241230
["ID","MTS","AMOUNT","RATE_DAILY","PERIOD"]
[347172801,1735545042137,-1954.06,0.00016477,2]
[347172803,1735545042146,-1597.38,0.00016477,2]
[347172805,1735545042155,-500.0,0.00016477,2]
[347172807,1735545042165,-500.0,0.00016477,2]
[347172809,1735545042174,-502.35298508,0.00016477,2]
[347172811,1735545042183,-1842.63,0.00016477,2]
[347172813,1735545042192,-500.0,0.00016477,2]
[347172815,1735545042202,-3511.22,0.00016477,2]
[347172817,1735545042211,-303.91607725,0.00016477,2]
[347172820,1735545042223,-208.32720351,0.00016477,2]
[347172821,1735545042232,-946.48,0.00016477,2]
[347172824,1735545042242,-620.42,0.00016477,2]
[347172825,1735545042251,-500.0,0.00016477,2]
[347172827,1735545042260,-501.62557881,0.00016477,2]
[347172829,1735545042270,-844.71,0.00016477,2]
[347172831,1735545042279,-1964.26,0.00016477,2]
[347172833,1735545042288,-907.96,0.00016477,2]
[347172835,1735545042297,-507.13955034,0.00016477,2]
[347172837,1735545042308,-500.0,0.00016477,2]
[347172839,1735545042317,-645.03,0.00016477,2]
[347172842,1735545042327,-500.0,0.00016477,2]
[347172843,1735545042336,-1134.96,0.00016477,2]
[347172846,1735545042345,-499.67786278,0.00016477,2]
[347172848,1735545042357,-49.37108655,0.00016477,2]
[347172850,1735545042366,-500.0,0.00016477,2]
[347172852,1735545042376,-502.63599797,0.00016477,2]
[347172854,1735545042385,-501.89591815,0.00016477,2]
[347172856,1735545042394,-564.07,0.00016477,2]
[347172858,1735545042403,-501.95199499,0.00016477,2]
[347172859,1735545042414,-500.57487194,0.00016477,2]
[347172861,1735545042423,-780.82,0.00016477,2]
[347172863,1735545042432,-650.87714124,0.00016477,2]
[347172884,1735545042626,-71.43285876,0.00016477,2]
[347172886,1735545042636,-511.59887589,0.00016477,2]
[347172888,1735545042646,-500.0,0.00016477,2]
[347172891,1735545042658,-490.8009478,0.00016477,2]
[347172893,1735545042668,-500.0,0.00016477,2]
[347172895,1735545042683,-503.35566563,0.00016477,2]
[347172897,1735545042692,-503.27742201,0.00016477,2]
[347172899,1735545042702,-500.0,0.00016477,2]
[347172901,1735545042712,-501.87620788,0.00016477,2]
[347172903,1735545042722,-500.0,0.00016477,2]
[347172905,1735545042732,-500.0,0.00016477,2]
[347172907,1735545042741,-683.53,0.00016477,2]
[347172909,1735545042751,-500.0,0.00016477,2]
[347172910,1735545042760,-764.79,0.00016477,2]
[347172912,1735545042770,-500.0,0.00016477,2]
[347172914,1735545042780,-517.00630527,0.00016477,2]
[347172916,1735545042789,-1099.81,0.00016477,2]
[347172918,1735545042799,-500.0,0.00016477,2]
[347172920,1735545042810,-500.0,0.00016477,2]
[347172922,1735545042820,-506.20934424,0.00016477,2]
[347172924,1735545042829,-1157.31,0.00016477,2]
[347172926,1735545042839,-3282.23,0.00016477,2]
[347172928,1735545042848,-503.11824216,0.00016477,2]
[347172931,1735545042858,-503.12917628,0.00016477,2]
[347172933,1735545042867,-642.14,0.00016477,2]
[347172934,1735545042877,-1198.26,0.00016477,2]
[347172937,1735545042886,-975.55,0.00016477,2]
[347172939,1735545042896,-743.6,0.00016477,2]
[347172940,1735545042905,-503.1036531,0.00016477,2]
[347172943,1735545042915,-502.42108099,0.00016477,2]
[347172944,1735545042924,-505.48533089,0.00016477,2]
[347172947,1735545042933,-500.0,0.00016477,2]
[347172948,1735545042943,-555.38,0.00016477,2]
[347172951,1735545042952,-500.0,0.00016477,2]
[347172953,1735545042961,-167.60136028,0.00016477,2]
[347172955,1735545042971,-500.0,0.00016477,2]
[347172956,1735545042980,-837.33,0.00016477,2]
[347172958,1735545042990,-500.0,0.00016477,2]
[347172960,1735545042999,-724.49,0.00016477,2]
[347172962,1735545043008,-585.82,0.00016477,2]
[347172964,1735545043018,-521.27,0.00016477,2]
[347172966,1735545043027,-973.83,0.00016477,2]
[347172968,1735545043036,-1804.43,0.00016477,2]
[347172970,1735545043045,-500.0,0.00016477,2]
[347172972,1735545043056,-500.0,0.00016477,2]
[347172974,1735545043065,-1989.52,0.00016477,2]
[347172976,1735545043074,-500.0,0.00016477,2]
[347172978,1735545043084,-2139.13,0.00016477,2]
[347172980,1735545043094,-1266.41,0.00016477,2]
[347172982,1735545043103,-585.22,0.00016477,2]
[347172984,1735545043112,-1611.73,0.00016477,2]
[347172986,1735545043122,-500.0,0.00016477,2]
[347172988,1735545043131,-2545.48,0.00016477,2]
[347172990,1735545043141,-500.0,0.00016477,2]
[347172992,1735545043150,-500.0,0.00016477,2]
[347172994,1735545043159,-500.0,0.00016477,2]
[347172996,1735545043169,-500.0,0.00016478,2]
[347172998,1735545043179,-500.0,0.00016478,2]
[347173002,1735545043188,-500.0,0.00016478,2]
[347173004,1735545043198,-500.0,0.00016478,2]
[347173006,1735545043207,-500.0,0.00016478,2]
[347173009,1735545043217,-500.0,0.00016478,2]
[347173011,1735545043226,-500.0,0.00016478,2]
[347173013,1735545043235,-553.25,0.00016478,2]
[347173014,1735545043244,-500.0,0.00016478,2]
[347173016,1735545043254,-500.0,0.00016478,2]
[347173018,1735545043263,-569.04,0.00016478,2]
[347173020,1735545043272,-500.0,0.00016478,2]
[347173022,1735545043282,-537.05,0.00016478,2]
[347173024,1735545043291,-500.0,0.00016478,2]
[347173026,1735545043302,-500.0,0.00016478,2]
[347173028,1735545043312,-512.52514277,0.00016478,2]
[347173030,1735545043322,-500.0,0.00016478,2]
[347173032,1735545043332,-500.0,0.00016478,2]
[347173034,1735545043341,-500.0,0.00016478,2]
[347173036,1735545043351,-500.0,0.00016478,2]
[347173038,1735545043360,-500.0,0.00016478,2]
[347173040,1735545043370,-500.0,0.00016478,2]
[347173043,1735545043380,-502.31229826,0.00016478,2]
[347173044,1735545043389,-500.0,0.00016478,2]
[347173047,1735545043399,-500.0,0.00016478,2]
[347173049,1735545043409,-500.0,0.00016478,2]
[347173050,1735545043420,-500.0,0.00016478,2]
[347173052,1735545043430,-500.0,0.00016478,2]
[347173055,1735545043439,-508.41,0.00016478,2]
[347173057,1735545043450,-512.77,0.00016478,2]
[347173059,1735545043460,-500.0,0.00016478,2]
[347173060,1735545043469,-628.39,0.00016478,2]
[347173063,1735545043480,-500.0,0.00016478,2]
[347173065,1735545043489,-500.0,0.00016478,2]
[347173066,1735545043499,-500.0,0.00016478,2]
[347173068,1735545043509,-578.08,0.00016478,2]
[347173070,1735545043519,-500.0,0.00016478,2]
[347173073,1735545043529,-503.15200638,0.00016478,2]
[347173074,1735545043538,-675.5,0.00016478,2]
[347173076,1735545043547,-500.0,0.00016478,2]
[347173079,1735545043560,-500.0,0.00016478,2]
[347173081,1735545043570,-501.71177387,0.00016478,2]
[347173082,1735545043579,-500.0,0.00016478,2]
[347173084,1735545043589,-500.0,0.00016478,2]
[347173086,1735545043598,-500.0,0.00016478,2]
[347173088,1735545043608,-500.0,0.00016478,2]
[347173090,1735545043618,-500.0,0.00016478,2]
[347173092,1735545043628,-500.0,0.00016478,2]
[347173094,1735545043637,-500.0,0.00016478,2]
[347173096,1735545043646,-500.0,0.00016478,2]
[347173098,1735545043656,-955.65,0.00016478,2]
[347173100,1735545043665,-500.0,0.00016478,2]
[347173102,1735545043676,-500.0,0.00016478,2]
[347173104,1735545043685,-734.44,0.00016478,2]
[347173106,1735545043694,-734.44,0.00016478,2]
[347173108,1735545043703,-734.44,0.00016478,2]
[347173110,1735545043713,-734.44,0.00016478,2]
[347173112,1735545043723,-734.44,0.00016478,2]
[347173113,1735545043733,-734.44,0.00016478,2]
[347173114,1735545043743,-734.44,0.00016478,2]
[347173115,1735545043753,-734.44,0.00016478,2]
[347173116,1735545043763,-500.0,0.00016478,2]
[347173117,1735545043773,-734.44,0.00016478,2]
[347173118,1735545043783,-734.44,0.00016478,2]
[347173119,1735545043792,-734.44,0.00016478,2]
[347173121,1735545043805,-734.44,0.00016478,2]
[347173123,1735545043815,-734.44,0.00016478,2]
[347173125,1735545043824,-734.44,0.00016478,2]
[347173127,1735545043835,-734.44,0.00016478,2]
[347173129,1735545043845,-734.44,0.00016478,2]
[347173131,1735545043854,-734.44,0.00016478,2]
[347173133,1735545043865,-734.44,0.00016478,2]
[347173135,1735545043875,-734.44,0.00016478,2]
[347173137,1735545043885,-734.44,0.00016478,2]
[347173138,1735545043895,-734.44,0.00016478,2]
[347173140,1735545043908,-734.44,0.00016478,2]
[347173142,1735545043917,-734.44,0.00016478,2]
[347173145,1735545043928,-734.47587262,0.00016478,2]
[347173146,1735545043937,-500.0,0.00016478,2]
[347173148,1735545043946,-500.0,0.00016478,2]
[347173150,1735545043956,-603.09,0.00016478,2]
[347173152,1735545043965,-1059.4,0.00016478,2]
[347173154,1735545043974,-500.0,0.00016478,2]
[347173156,1735545043983,-500.0,0.00016478,2]
[347173158,1735545043993,-646.71042393,0.00016478,2]
[347173160,1735545044003,-620.15,0.00016478,2]
[347173162,1735545044011,-840.2,0.00016478,2]
[347173164,1735545044021,-500.0,0.00016478,2]
[347173166,1735545044030,-500.0,0.00016478,2]
[347173168,1735545044039,-500.0,0.00016478,2]
[347173170,1735545044051,-500.0,0.00016478,2]
[347173173,1735545044060,-816.27,0.00016478,2]
[347173174,1735545044069,-500.0,0.00016478,2]
[347173177,1735545044079,-500.0,0.00016478,2]
[347173179,1735545044088,-500.0,0.00016478,2]
[347173181,1735545044097,-500.0,0.00016478,2]
[347173183,1735545044107,-500.0,0.00016478,2]
[347173185,1735545044117,-653.2,0.00016478,2]
[347173187,1735545044128,-500.0,0.00016478,2]
[347173189,1735545044141,-500.0,0.00016478,2]
[347173191,1735545044150,-500.0,0.00016478,2]
[347173193,1735545044159,-500.0,0.00016478,2]
[347173195,1735545044167,-500.0,0.00016478,2]
[347173197,1735545044176,-500.0,0.00016478,2]
[347173199,1735545044186,-500.0,0.00016478,2]
[347173201,1735545044194,-536.97,0.00016478,2]
[347173203,1735545044203,-500.0,0.00016478,2]
[347173205,1735545044213,-509.78,0.00016478,2]
[347173207,1735545044222,-638.53,0.00016478,2]
[347173209,1735545044231,-690.08,0.00016478,2]
[347173211,1735545044240,-500.0,0.00016478,2]
[347173213,1735545044250,-500.0,0.00016478,2]
[347173215,1735545044259,-500.0,0.00016478,2]
[347173217,1735545044268,-500.0,0.00016478,2]
[347173219,1735545044278,-500.0,0.00016478,2]
[347173221,1735545044287,-500.0,0.00016478,2]
[347173223,1735545044296,-863.91,0.00016478,2]
[347173225,1735545044305,-576.6,0.00016478,2]
[347173227,1735545044314,-500.0,0.00016478,2]
[347173229,1735545044323,-500.0,0.00016478,2]
[347173231,1735545044333,-500.0,0.00016478,2]
[347173233,1735545044342,-500.0,0.00016478,2]
[347173235,1735545044351,-500.0,0.00016478,2]
[347173237,1735545044360,-500.0,0.00016478,2]
[347173239,1735545044369,-789.34,0.00016478,2]
[347173241,1735545044378,-500.0,0.00016478,2]
[347173243,1735545044387,-607.8,0.00016478,2]
[347173245,1735545044396,-860.88,0.00016478,2]
[347173247,1735545044405,-500.0,0.00016478,2]
[347173249,1735545044415,-1100.08,0.00016478,2]
[347173250,1735545044424,-502.94879506,0.00016478,2]
[347173252,1735545044433,-504.28624357,0.00016478,2]
[347173255,1735545044443,-500.0,0.00016478,2]
[347173257,1735545044453,-503.15394155,0.00016478,2]
[347173258,1735545044462,-500.0,0.00016478,2]
[347173260,1735545044471,-2418.81,0.00016478,2]
[347173262,1735545044481,-500.0,0.00016478,2]
[347173264,1735545044490,-500.0,0.00016478,2]
[347173266,1735545044499,-502.43178632,0.00016478,2]
[347173268,1735545044508,-500.0,0.00016478,2]
[347173270,1735545044517,-498.9705156,0.00016478,2]
[347173272,1735545044526,-546.63,0.00016478,2]
[347173274,1735545044536,-500.0,0.00016478,2]
[347173276,1735545044544,-500.0,0.00016478,2]
[347173278,1735545044556,-502.32867381,0.00016478,2]
[347173280,1735545044566,-500.0,0.00016478,2]
[347173282,1735545044577,-500.0,0.00016478,2]
[347173284,1735545044586,-503.80015105,0.00016478,2]
[347173286,1735545044595,-501.83914276,0.00016478,2]
[347173288,1735545044606,-502.02817211,0.00016478,2]
[347173290,1735545044615,-500.0,0.00016478,2]
[347173292,1735545044625,-500.0,0.00016478,2]
[347173295,1735545044635,-691.1,0.00016478,2]
[347173297,1735545044644,-433.61506727,0.00016478,2]
[347173299,1735545044654,-593.48,0.00016478,2]
[347173301,1735545044663,-502.21461007,0.00016478,2]
[347173303,1735545044678,-500.0,0.00016478,2]
[347173305,1735545044687,-503.09414499,0.00016478,2]
[347173307,1735545044696,-579.73,0.00016478,2]
[347173309,1735545044705,-500.0,0.00016478,2]
[347173311,1735545044715,-500.0,0.00016478,2]
[347173313,1735545044725,-500.0,0.00016478,2]
[347173315,1735545044734,-500.0,0.00016478,2]
[347173317,1735545044743,-503.13081524,0.00016478,2]
[347173319,1735545044754,-503.2932926,0.00016478,2]
[347173321,1735545044763,-503.08752639,0.00016478,2]
[347173323,1735545044772,-1094.63,0.00016478,2]
[347173325,1735545044781,-504.42446763,0.00016478,2]
[347173327,1735545044791,-505.55873579,0.00016478,2]
[347173329,1735545044800,-509.68878323,0.00016478,2]
[347173331,1735545044809,-797.11,0.00016478,2]
[347173333,1735545044819,-509.17606681,0.00016478,2]
[347173335,1735545044828,-500.0,0.00016478,2]
[347173337,1735545044838,-500.0,0.00016478,2]
[347173339,1735545044847,-500.0,0.00016478,2]
[347173341,1735545044856,-500.0,0.00016478,2]
[347173343,1735545044865,-500.9926369,0.00016478,2]
[347173345,1735545044874,-500.0,0.00016478,2]
[347173347,1735545044883,-501.23566008,0.00016478,2]
[347173349,1735545044892,-500.0,0.00016478,2]
[347173351,1735545044902,-502.38476195,0.00016478,2]
[347173353,1735545044911,-1072.0,0.00016478,2]
[347173354,1735545044921,-500.0,0.00016478,2]
[347173355,1735545044930,-500.0,0.00016478,2]
[347173356,1735545044939,-500.0,0.00016478,2]
[347173357,1735545044948,-500.0,0.00016478,2]
[347173358,1735545044957,-500.0,0.00016478,2]
[347173359,1735545044967,-500.95325103,0.00016478,2]
[347173360,1735545044976,-502.13238978,0.00016478,2]
[347173361,1735545044985,-505.2860803,0.00016478,2]
[347173362,1735545044995,-500.0,0.00016478,2]
[347173363,1735545045005,-502.62924299,0.00016478,2]
[347173364,1735545045014,-500.0,0.00016478,2]
[347173365,1735545045024,-500.0,0.00016478,2]
[347173366,1735545045033,-501.30950227,0.00016478,2]
[347173369,1735545045042,-500.0,0.00016478,2]
[347173370,1735545045181,-910.12,0.00016478,2]
[347173372,1735545045190,-500.0,0.00016478,2]
[347173374,1735545045199,-565.32,0.00016478,2]
[347173376,1735545045208,-500.0,0.00016478,2]
[347173378,1735545045218,-500.0,0.00016478,2]
[347173380,1735545045227,-501.82868132,0.00016478,2]
[347173382,1735545045237,-1342.77,0.00016478,2]
[347173384,1735545045246,-500.0,0.00016478,2]
[347173385,1735545045255,-500.0,0.00016478,2]
[347173386,1735545045264,-502.95929844,0.00016478,2]
[347173387,1735545045274,-500.0,0.00016478,2]
[347173388,1735545045283,-503.25117279,0.00016478,2]
[347173389,1735545045292,-314.78665972,0.00016478,2]
[347173390,1735545045301,-500.0,0.00016478,2]
[347173391,1735545045310,-604.07,0.00016478,2]
[347173392,1735545045319,-643.64421723,0.00016478,2]
[347173393,1735545045328,-504.23451843,0.00016478,2]
[347173394,1735545045337,-654.8,0.00016478,2]
[347173395,1735545045346,-500.0,0.00016478,2]
[347173396,1735545045355,-503.84325219,0.00016478,2]
[347173397,1735545045364,-458.27259261,0.00016478,2]
[347173398,1735545045373,-500.0,0.00016478,2]
[347173399,1735545045382,-501.79261031,0.00016478,2]
[347173400,1735545045391,-500.0,0.00016478,2]
[347173401,1735545045400,-501.55828018,0.00016478,2]
[347173402,1735545045411,-462.29316982,0.00016478,2]
[347173403,1735545045421,-1430.29,0.00016478,2]
[347173404,1735545045430,-503.24863314,0.00016478,2]
[347173405,1735545045439,-501.4152548,0.00016478,2]
[347173406,1735545045449,-500.0,0.00016478,2]
[347173407,1735545045458,-505.14826627,0.00016478,2]
[347173408,1735545045467,-504.12003584,0.00016478,2]
[347173409,1735545045477,-503.77991787,0.00016478,2]
[347173410,1735545045486,-500.0,0.00016478,2]
[347173411,1735545045495,-334.13027371,0.00016478,2]
[347173412,1735545045504,-500.9443665,0.00016478,2]
[347173413,1735545045513,-500.0,0.00016478,2]
[347173414,1735545045523,-510.46,0.00016478,2]
[347173415,1735545045532,-500.0,0.00016478,2]
[347173416,1735545045540,-500.0,0.00016478,2]
[347173417,1735545045549,-500.0,0.00016478,2]
[347173418,1735545045562,-500.0,0.00016478,2]
[347173419,1735545045573,-500.0,0.00016478,2]
[347173420,1735545045583,-500.0,0.00016478,2]
[347173421,1735545045592,-500.0,0.00016478,2]
[347173422,1735545045602,-334.43080331,0.00016478,2]
[347173423,1735545045611,-502.51103341,0.00016478,2]
[347173424,1735545045620,-500.0,0.00016478,2]
[347173425,1735545045630,-501.9925341,0.00016478,2]
[347173426,1735545045640,-500.0,0.00016478,2]
[347173427,1735545045649,-950.9,0.00016478,2]
[347173428,1735545045659,-503.99166146,0.00016478,2]
[347173429,1735545045669,-500.0,0.00016478,2]
[347173430,1735545045680,-502.05334669,0.00016478,2]
[347173431,1735545045690,-615.77,0.00016478,2]
[347173432,1735545045700,-501.88105589,0.00016478,2]
[347173433,1735545045710,-975.67,0.00016478,2]
[347173434,1735545045720,-500.0,0.00016478,2]
[347173435,1735545045729,-502.16188006,0.00016478,2]
[347173436,1735545045739,-498.49214596,0.00016478,2]
[347173437,1735545045748,-501.57117743,0.00016478,2]
[347173438,1735545045760,-500.0,0.00016478,2]
[347173439,1735545045769,-1861.44,0.00016478,2]
[347173440,1735545045778,-500.0,0.00016478,2]
[347173441,1735545045787,-500.94399398,0.00016478,2]
[347173442,1735545045796,-500.43368271,0.00016478,2]
[347173443,1735545045806,-501.3733126,0.00016478,2]
[347173444,1735545045815,-523.32,0.00016478,2]
[347173445,1735545045824,-500.0,0.00016478,2]
[347173446,1735545045834,-613.01,0.00016478,2]
[347173447,1735545045843,-500.0,0.00016478,2]
[347173448,1735545045852,-500.0,0.00016478,2]
[347173449,1735545045862,-500.0,0.00016478,2]
[347173450,1735545045870,-502.94904902,0.00016478,2]
[347173451,1735545045879,-517.59,0.00016478,2]
[347173452,1735545045889,-500.0,0.00016478,2]
[347173453,1735545045899,-1144.44,0.00016478,2]
[347173454,1735545045908,-636.88,0.00016478,2]
[347173455,1735545045917,-994.48,0.00016478,2]
[347173456,1735545045927,-877.61,0.00016478,2]
[347173457,1735545045936,-500.0,0.00016478,2]
[347173458,1735545045946,-1000.0,0.00016478,2]
[347173459,1735545045955,-500.0,0.00016478,2]
[347173460,1735545045964,-1215.64,0.00016478,2]
[347173461,1735545045973,-500.0,0.00016478,2]
[347173462,1735545045982,-500.0,0.00016478,2]
[347173463,1735545045992,-1623.55,0.00016478,2]
[347173464,1735545046001,-744.44,0.00016478,2]
[347173465,1735545046011,-957.38,0.00016478,2]
[347173466,1735545046022,-614.28,0.00016478,2]
[347173467,1735545046031,-500.0,0.00016478,2]
[347173469,1735545046041,-678.43,0.00016478,2]
[347173470,1735545046050,-1180.93,0.00016478,2]
[347173471,1735545046059,-514.84,0.00016478,2]
[347173472,1735545046068,-500.0,0.00016478,2]
[347173473,1735545046077,-500.0,0.00016478,2]
[347173474,1735545046086,-1336.31,0.00016478,2]
[347173475,1735545046095,-507.96,0.00016478,2]
[347173476,1735545046104,-500.0,0.00016478,2]
[347173478,1735545046114,-691.08,0.00016478,2]
[347173479,1735545046123,-1190.21,0.00016478,2]
[347173480,1735545046132,-500.0,0.00016478,2]
[347173481,1735545046141,-719.42,0.00016478,2]
[347173482,1735545046150,-675.97,0.00016478,2]
[347173483,1735545046159,-500.0,0.00016478,2]
[347173484,1735545046169,-507.82,0.00016478,2]
[347173485,1735545046178,-500.0,0.00016478,2]
[347173486,1735545046187,-507.51,0.00016479,2]
[347173487,1735545046196,-500.0,0.00016479,2]
[347173488,1735545046207,-754.85,0.00016479,2]
[347173489,1735545046216,-1077.08,0.00016479,2]
[347173490,1735545046225,-500.0,0.00016479,2]
[347173491,1735545046235,-500.0,0.00016479,2]
[347173492,1735545046244,-632.63,0.00016479,2]
[347173493,1735545046254,-500.0,0.00016479,2]
[347173494,1735545046263,-526.46,0.00016479,2]
[347173495,1735545046273,-500.0,0.00016479,2]
[347173496,1735545046282,-500.0,0.00016479,2]
[347173497,1735545046291,-502.51042162,0.00016479,2]
[347173498,1735545046301,-1275.38,0.00016479,2]
[347173499,1735545046311,-1539.0,0.0001648,2]
[347173500,1735545046319,-1158.38711182,0.0001648,2]
[347173501,1735545046329,-37358.52898789,0.0001648,2]
[347173504,1735545047071,-444.37591366,0.00014106,2]
[347173506,1735545047081,-420.40303933,0.00016239,2]
[347173508,1735545047090,-81.38405268,0.00016474,2]
[347173511,1735545047550,-452.89750998,0.0001589,2]
[347173512,1735545047562,-547.10249002,0.0001589,2]
[347173513,1735545047571,-424.9632505,0.00016474,2]
[347173514,1735545047581,-500.0,0.00016474,2]
[347173515,1735545047591,-500.0,0.00016474,2]
[347173516,1735545047600,-500.0,0.00016476,2]
[347173517,1735545047609,-500.0,0.00016476,2]
[347173518,1735545047618,-500.0,0.00016476,2]
[347173519,1735545047627,-539.56,0.00016477,2]
[347173520,1735545047636,-500.0,0.00016477,2]
[347173521,1735545047645,-73391.30487467,0.0001648,2]
[347173522,1735545048092,-444.37591366,0.00014106,2]
[347173523,1735545048101,-500.0,0.00016474,2]
[347173524,1735545048110,-502.8519534,0.00016476,2]
[347173525,1735545048119,-502.32,0.00016476,2]
[347173526,1735545048132,-500.0,0.00016476,2]
[347173527,1735545048141,-511.39778313,0.00016476,2]
[347173528,1735545048150,-500.0,0.00016477,2]
[347173529,1735545048159,-2722.5178113,0.0001648,2]
[347173530,1735545048171,-1024.999945,0.0001648,2]
[347173531,1735545048191,-776.92,0.00016477,2]
[347173532,1735545048200,-52093.9246,0.0001648,2]
[347173533,1735545048211,-24955.581605,0.0001648,2]
[347173535,1735545135843,450.0,0.00012,2]
[347173536,1735545406543,895.2262821,0.0002,120]
[347173537,1735545484944,100000.0,0.0002,120]
[347173538,1735545771627,11842.11051887,0.00013,2]
[347173540,1735545938340,3999.38322294,0.00012944,2]
[347173541,1735546036160,-150.0,0.00013044,2]
[347173542,1735546036185,-150.0,0.00013044,2]
[347173543,1735546036208,-150.0,0.00013044,2]
[347173544,1735546036229,-237.18291264,0.00013044,2]
[347173545,1735546036252,-150.0,0.00013044,2]
[347173546,1735546036274,-50.73953139,0.00013059,2]
[347173547,1735546110782,150.0,0.00019935,120]
[347173548,1735546126691,1609.76,0.00012944,2]
[347173549,1735546133271,167.45,0.00012944,2]
[347173550,1735546149108,-308.53046861,0.00013059,2]
[347173551,1735546149129,-150.0,0.00013147,2]
[347173552,1735546149149,-150.0,0.00013251,2]
[347173553,1735546149169,-150.0,0.00013285,2]
[347173554,1735546149189,-150.0,0.00013334,2]
[347173555,1735546149213,-150.0,0.00013334,2]
[347173556,1735546149235,-150.0,0.00013354,2]
[347173557,1735546149259,-2537.06853896,0.00013421,2]
[347173558,1735546152105,-26.64146104,0.00013421,2]
[347173559,1735546152127,-250.0,0.00013452,2]
[347173560,1735546152148,-150.0,0.00013458,2]
[347173561,1735546152169,-150.0,0.00013527,2]
[347173562,1735546152190,-428.71,0.00013537,2]
[347173563,1735546152211,-150.0,0.00013539,2]
[347173564,1735546152231,-150.0,0.00013561,2]
[347173565,1735546152253,-150.0,0.00013624,2]
[347173566,1735546152275,-150.0,0.00013624,2]
[347173567,1735546152296,-1329.26,0.00013645,2]
[347173568,1735546152322,-150.0,0.00013665,2]
[347173569,1735546152343,-169.52,0.00013699,2]
[347173570,1735546152365,-150.0,0.00013768,2]
[347173571,1735546152386,-150.0,0.00013768,2]
[347173572,1735546152410,-150.0,0.00013872,2]
[347173573,1735546152580,-136.45119286,0.00013913,2]
[347173574,1735546157097,-13.54880714,0.00013913,2]
[347173575,1735546157118,-150.0,0.00013913,2]
[347173576,1735546157139,-150.0,0.00013976,2]
[347173577,1735546157160,-500.0,0.00014,2]
[347173578,1735546157181,-150.0,0.0001401,2]
[347173579,1735546157202,-150.0,0.00014079,2]
[347173580,1735546157224,-150.0,0.00014183,2]
[347173581,1735546157245,-162.27079328,0.00014186,2]
[347173582,1735546157268,-150.0,0.00014203,2]
[347173583,1735546157290,-150.0,0.00014203,2]
[347173584,1735546157313,-4158.864,0.0001421,2]
[347173585,1735546157336,-189.768,0.0001421,2]
[347173586,1735546157358,-150.0,0.00014252,2]
[347173587,1735546157380,-849.6,0.00014279,2]
[347173588,1735546157405,-1198.48,0.00014279,2]
[347173589,1735546157427,-500.0,0.00014279,2]
[347173590,1735546157448,-943.3,0.00014279,2]
[347173591,1735546157469,-1459.78,0.00014279,2]
[347173592,1735546157489,-500.0,0.00014279,2]
[347173593,1735546157512,-500.0,0.00014279,2]
[347173594,1735546157534,-1259.47,0.00014279,2]
[347173595,1735546157555,-4019.41,0.00014279,2]
[347173596,1735546157576,-623.33,0.00014279,2]
[347173597,1735546157598,-1739.81,0.00014279,2]
[347173598,1735546157619,-1799.15,0.00014279,2]
[347173599,1735546157642,-2133.62,0.00014279,2]
[347173600,1735546157663,-863.55,0.00014279,2]
[347173601,1735546157684,-2158.24,0.00014279,2]
[347173602,1735546157706,-53269.04109748,0.0001428,2]